bitfinex/quotes_SOLUSD_20220302
["timestamp","ask_amount","ask_price","bid_price","bid_amount"]
[1646193126029,152.33375724,105.15,105.07,11.54]
[1646193126230,55.98375724,105.15,105.06,11.54]
[1646193126631,4.17523609,105.18,105.06,11.54]
[1646193127131,4.17523609,105.18,105.08,14.2726]
[1646193127340,100.52523609,105.18,105.09,0.24682626]
[1646193127544,96.35,105.16,105.08,14.2726]
[1646193128140,4.17523609,105.15,105.08,14.2726]
[1646193130145,4.17523609,105.15,105.09,0.15771053]
[1646193130447,4.17523609,105.15,105.08,14.2726]
[1646193130844,4.17523609,105.15,105.06,19.2752]
[1646193131047,96.35,105.13,105.06,19.2752]
[1646193131246,96.35,105.13,105.06,5.0]
[1646193131649,96.35,105.13,105.02,11.54]
[1646193131850,100.52523609,105.16,105.05,14.2769]
[1646193132649,104.33023609,105.16,105.05,14.2769]
[1646193132848,154.4753051,105.16,105.05,14.2769]
[1646193133248,157.02434513,105.16,105.05,14.2769]
[1646193133448,154.4753051,105.16,105.05,14.2769]
[1646193133650,166.0153051,105.16,105.05,14.2769]
[1646193134048,181.71976999,105.16,105.05,14.2769]
[1646193134450,181.71976999,105.16,105.04,5.0]
[1646193134451,0.36340765,105.15,105.04,5.0]
[1646193134649,96.35,105.11,104.95,37.85469281]
[1646193134851,96.35,105.09,104.95,11.54]
[1646193135049,96.35,105.07,104.95,11.54]
[1646193135254,96.35,105.07,105.01,5.0]
[1646193135452,96.35,105.07,105.02,14.2814]
[1646193137456,23.0174,105.08,105.02,14.2814]
[1646193137655,127.2466,105.1,105.03,0.37968773]
[1646193138156,4.17523609,105.09,105.03,14.2793]
[1646193138554,143.55912754,105.08,105.01,5.0]
[1646193138754,47.20912754,105.08,105.01,5.0]
[1646193138953,47.20912754,105.08,104.99,47.6063]
[1646193139355,47.20912754,105.08,105.01,5.0]
[1646193139556,96.35,105.07,105.01,5.0]
[1646193139756,96.35,105.07,105.01,19.2822]
[1646193140158,96.35,105.07,105.01,14.2822]
[1646193141158,143.55912754,105.08,105.01,14.2822]
[1646193141561,4.17523609,105.09,105.02,0.43638567]
[1646193141861,4.17523609,105.06,105.02,14.71698567]
[1646193142460,4.17523609,105.06,105.02,14.2806]
[1646193144460,4.17523609,105.08,105.02,14.2806]
[1646193144859,4.17523609,105.08,105.0,14.2837]
[1646193145060,96.35,105.07,105.0,14.2837]
[1646193146665,112.91205585,105.07,105.0,14.2837]
[1646193147272,129.4741117,105.07,105.0,14.2837]
[1646193147465,96.35,105.07,104.99,5.0]
[1646193147766,150.67194751,105.05,104.99,5.0]
[1646193148167,150.67194751,105.05,104.94,47.6266]
[1646193148366,2.54904003,105.04,104.94,47.6266]
[1646193148570,96.35,105.03,104.95,19.2907]
[1646193149167,121.61706913,105.03,104.95,19.2907]
[1646193149369,121.61706913,105.03,104.95,14.2907]
[1646193150871,4.17523609,105.02,104.95,14.2907]
[1646193151667,154.30891379,105.01,104.95,14.2907]
[1646193152471,2.54904003,105.0,104.93,14.2934]
[1646193152772,104.97832006,104.99,104.89,66.60715142]
[1646193152971,104.97832006,104.99,104.89,66.6324]
[1646193153471,25.26706913,104.99,104.89,66.6324]
[1646193153675,25.26706913,104.99,104.89,64.02124828]
[1646193154072,4.17523609,104.98,104.89,64.02124828]
[1646193154371,54.77061579,104.97,104.89,61.6324]
[1646193154573,4.17523609,104.98,104.89,13.9826]
[1646193154574,29.41055738,104.98,104.89,13.9826]
[1646193154771,98.89904003,104.97,104.89,13.9826]
[1646193154973,96.35,104.95,104.81,35.38621919]
[1646193155173,96.35,104.95,104.81,9.95948987]
[1646193155373,96.35,104.95,104.8,11.54]
[1646193155374,96.35,104.93,104.8,11.54]
[1646193155574,96.35,104.91,104.83,14.3068]
[1646193155973,83.58171911,104.92,104.78,0.43603386]
[1646193155974,96.35,104.89,104.78,0.43603386]
[1646193156177,121.55357345,104.9,104.78,11.97603386]
[1646193156374,17.41537932,104.89,104.8,5.0]
[1646193156574,47.52312124,104.88,104.8,19.3117]
[1646193156774,47.52312124,104.88,104.8,5.0]
[1646193156977,19.09254558,104.87,104.8,5.0]
[1646193157173,96.35,104.86,104.8,5.0]
[1646193157373,127.85441935,104.86,104.8,5.0]
[1646193157580,115.44254558,104.85,104.78,0.43603386]
[1646193157779,51.15201987,104.84,104.78,0.43603386]
[1646193158174,68.56739919,104.84,104.78,0.43603386]
[1646193158579,2.54904003,104.83,104.78,0.43603386]
[1646193158777,17.90404003,104.83,104.78,0.43603386]
[1646193158975,16.54350555,104.82,104.78,3.386e-05]
[1646193159174,112.89350555,104.82,104.78,3.386e-05]
[1646193159576,25.23532129,104.81,104.78,3.386e-05]
[1646193159975,1.04843034,104.8,104.78,3.386e-05]
[1646193160175,4.99239692,104.8,104.78,3.386e-05]
[1646193160576,30.19833176,104.8,104.78,3.386e-05]
[1646193161198,30.19833176,104.8,104.76,60.59041683]
[1646193161693,7.54143695,104.8,104.77,0.45195372]
[1646193162096,4.99239692,104.8,104.76,60.59041683]
[1646193162695,101.34239692,104.8,104.76,60.59041683]
[1646193162895,4.99239692,104.8,104.76,60.59041683]
[1646193163394,101.34239692,104.8,104.76,60.59041683]
[1646193163594,4.99239692,104.8,104.76,60.59041683]
[1646193163998,4.99239692,104.8,104.71,5.0]
[1646193163999,49.98072608,104.78,104.71,5.0]
[1646193164195,49.98072608,104.78,104.66,5.0]
[1646193164396,146.33072608,104.78,104.66,5.0]
[1646193164597,4.17523609,104.77,104.66,5.0]
[1646193164797,4.17523609,104.77,104.64,11.54]
[1646193164997,103.07427612,104.77,104.66,5.0]
[1646193165400,117.40507612,104.77,104.66,5.0]
[1646193165597,113.30610671,104.76,104.66,5.0]
[1646193165799,70.0,104.75,104.61,9.97650607]
[1646193166001,144.94256989,104.74,104.6,16.39642354]
[1646193166299,3.05,104.71,104.52,22.41263809]
[1646193166503,151.61062604,104.7,104.51,2.45608972]
[1646193166697,96.67715295,104.68,104.49,49.7031188]
[1646193166900,104.76215295,104.68,104.49,49.7031188]
[1646193167200,11.54,104.67,104.5,11.54]
[1646193167398,48.9766081,104.65,104.5,11.54]
[1646193167600,152.2006081,104.65,104.5,11.54]
[1646193167898,163.7406081,104.65,104.5,28.43474003]
[1646193168098,67.3906081,104.65,104.5,30.89631913]
[1646193168497,60.5166081,104.65,104.5,30.89631913]
[1646193168909,60.5166081,104.65,104.53,14.3447]
[1646193168910,56.24638894,104.63,104.53,14.3447]
[1646193169309,90.06123609,104.66,104.53,14.3447]
[1646193169611,86.23823609,104.66,104.54,0.19694347]
[1646193169811,27.51933609,104.66,104.54,0.19694347]
[1646193170010,27.51933609,104.66,104.55,2.54904003]
[1646193170209,4.17523609,104.66,104.55,2.7459835]
[1646193170409,4.17523609,104.66,104.56,14.3396]
[1646193170611,4.17523609,104.66,104.57,0.36203977]
[1646193171211,4.17523609,104.66,104.58,0.96]
[1646193171411,4.17523609,104.66,104.54,62.02263854]
[1646193171619,53.96440456,104.67,104.54,3.52904003]
[1646193171915,53.96440456,104.67,104.59,2.54904003]
[1646193172110,53.96440456,104.67,104.6,11.54]
[1646193172312,4.17523609,104.68,104.6,11.82501589]
[1646193172611,4.17523609,104.68,104.62,0.28501589]
[1646193173212,4.17523609,104.68,104.6,11.54]
[1646193173611,4.17523609,104.68,104.62,0.96]
[1646193173811,4.17523609,104.68,104.6,14.08904003]
[1646193174015,4.17523609,104.68,104.62,14.3317]
[1646193174413,52.57234199,104.72,104.62,14.3317]
[1646193175416,2.54904003,104.71,104.62,14.3317]
[1646193175614,52.57234199,104.72,104.62,14.3317]
[1646193176616,100.52523609,104.73,104.62,14.3317]
[1646193176818,4.17523609,104.73,104.63,0.56165364]
[1646193177015,4.17523609,104.73,104.64,14.3294]
[1646193177217,4.17523609,104.73,104.65,11.81368364]
[1646193177616,4.17523609,104.73,104.65,112.56281677]
[1646193178215,96.35,104.77,104.65,11.54]
[1646193178418,96.35,104.77,104.67,14.3248]
[1646193178820,4.17523609,104.78,104.67,14.3248]
[1646193179020,58.16362907,104.78,104.67,25.8648]
[1646193179220,4.17523609,104.78,104.68,96.35]
[1646193179423,4.17523609,104.78,104.69,27.98707704]
[1646193179620,4.17523609,104.78,104.69,27.7893138]
[1646193180519,4.17523609,104.78,104.71,14.3203]
[1646193180722,4.17523609,104.78,104.72,0.48577117]
[1646193180922,4.17523609,104.78,104.74,0.5832511]
[1646193181125,74.367,104.88,104.75,11.54]
[1646193181321,118.03285349,104.88,104.75,11.54]
[1646193181523,43.47715924,104.86,104.75,22.64659265]
[1646193181722,43.47715924,104.86,104.75,9.139]
[1646193181723,47.36333295,104.84,104.75,9.139]
[1646193182025,51.17833295,104.84,104.73,14.3159]
[1646193182422,51.17833295,104.84,104.73,17.64632971]
[1646193182621,147.42834003,104.88,104.73,29.18632971]
[1646193182823,3.815,104.87,104.73,35.17432971]
[1646193183024,3.815,104.87,104.73,32.8039]
[1646193183225,3.815,104.87,104.73,15.2759]
[1646193183426,2.54904003,104.86,104.73,14.3159]
[1646193183724,96.35,104.83,104.71,25.861]
[1646193183925,153.90895645,104.82,104.73,0.96]
[1646193184725,57.55895645,104.82,104.71,25.861]
[1646193185125,57.55895645,104.82,104.71,26.821]
[1646193185931,153.90895645,104.82,104.71,26.821]
[1646193186133,153.90895645,104.82,104.69,14.3242]
[1646193186331,96.35,104.79,104.68,0.96]
[1646193186529,54.4897721,104.78,104.68,0.96]
[1646193186730,150.8397721,104.78,104.68,0.96]
[1646193186932,54.4897721,104.78,104.68,0.96]
[1646193187133,15.56532674,104.77,104.56,47.7919]
[1646193187347,56.81890835,104.75,104.56,47.7919]
[1646193187550,59.75872779,104.73,104.56,47.7919]
[1646193187754,132.42127063,104.72,104.56,47.7919]
[1646193187952,56.2173955,104.71,104.56,47.7919]
[1646193188152,56.2173955,104.71,104.57,14.3407]
[1646193188349,55.85398785,104.71,104.57,14.3407]
[1646193188547,69.94302788,104.71,104.57,14.3407]
[1646193188748,166.29302788,104.71,104.57,14.3407]
[1646193188947,0.14987624,104.7,104.57,14.3407]
[1646193189348,85.76579611,104.71,104.57,14.3407]
[1646193190152,58.80000837,104.69,104.53,47.8063]
[1646193190351,3.822,104.7,104.51,72.01272493]
[1646193190352,56.88963809,104.67,104.51,70.3162]
[1646193190650,56.88963809,104.67,104.5,11.54]
[1646193190651,3.823,104.66,104.52,11.54]
[1646193190850,2.54904003,104.68,104.53,11.54]
[1646193191051,171.63854003,104.68,104.53,11.54]
[1646193191352,183.17854003,104.68,104.53,11.54]
[1646193191553,198.95307424,104.68,104.53,14.3452]
[1646193191751,96.35,104.64,104.53,14.3452]
[1646193191953,153.45359143,104.63,104.49,11.54]
[1646193192156,27.5015,104.66,104.49,11.54]
[1646193192359,23.6785,104.66,104.5,0.22133688]
[1646193192558,25.10336074,104.66,104.5,0.22133688]
[1646193192755,17.07674434,104.65,104.49,11.54]
[1646193192957,111.11354434,104.65,104.53,14.3451]
[1646193193155,52.16915296,104.64,104.53,14.3451]
[1646193193357,48.87878547,104.62,104.49,21.53062535]
[1646193194659,48.87878547,104.62,104.49,11.54]
[1646193195057,48.87878547,104.62,104.51,14.3484]
[1646193195259,48.87878547,104.62,104.52,0.24333303]
[1646193195858,48.87878547,104.62,104.5,11.54]
[1646193196259,145.22878547,104.62,104.52,14.3467]
[1646193196459,149.4261676,104.62,104.48,47.8278]
[1646193196658,195.0848255,104.62,104.48,47.8278]
[1646193196857,206.6248255,104.62,104.48,47.8278]
[1646193197059,110.2748255,104.62,104.48,47.8278]
[1646193197462,110.2748255,104.62,104.49,0.1295934]
[1646193197660,110.2748255,104.62,104.48,47.8278]
[1646193198059,9.51904649,104.61,104.5,14.3499]
[1646193198259,53.58442922,104.6,104.5,14.3499]
[1646193198459,9.51904649,104.61,104.5,14.3499]
[1646193199061,9.51904649,104.61,104.51,0.25407137]
[1646193199363,9.51904649,104.61,104.51,47.8181]
[1646193199759,9.51904649,104.61,104.51,52.8181]
[1646193200162,9.51904649,104.61,104.52,0.12995174]
[1646193200366,9.51904649,104.61,104.52,25.8878]
[1646193200663,8.31364728,104.61,104.52,14.3478]
[1646193201665,12.13864728,104.64,104.52,14.3478]
[1646193201865,8.31364728,104.64,104.52,14.3478]
[1646193202067,46.0372133,104.63,104.52,14.3478]
[1646193202467,48.58625333,104.63,104.52,14.3478]
[1646193203069,91.60934231,104.63,104.52,14.3478]
[1646193203267,89.06030228,104.63,104.52,14.3478]
[1646193203468,60.3871133,104.63,104.52,14.3478]
[1646193204069,2.54904003,104.62,104.5,14.3506]
[1646193204270,72.59099746,104.61,104.5,14.3506]
[1646193204471,197.61418644,104.61,104.5,14.3506]
[1646193204672,208.47687375,104.61,104.5,14.3506]
[1646193204871,220.01687375,104.61,104.5,14.3506]
[1646193205077,220.01687375,104.61,104.48,14.3534]
[1646193205272,97.99117272,104.59,104.42,34.1674]
[1646193205473,14.3578,104.57,104.42,34.1674]
[1646193205673,48.8921386,104.56,104.42,11.54]
[1646193206072,48.8921386,104.56,104.4,37.90789322]
[1646193206273,48.8921386,104.56,104.44,14.359]
[1646193206475,48.8921386,104.56,104.44,21.193]
[1646193206871,48.8921386,104.56,104.44,14.359]
[1646193207679,8.31364728,104.55,104.44,14.359]
[1646193207875,59.30896515,104.54,104.44,14.359]
[1646193208574,48.93588138,104.52,104.36,23.9169]
[1646193208773,58.05892104,104.5,104.37,11.54]
[1646193209172,72.42562104,104.5,104.42,5.0]
[1646193209375,73.78346191,104.5,104.42,4.5]
[1646193209576,72.42562104,104.5,104.42,4.5]
[1646193209773,72.42562104,104.5,104.37,47.8863]
[1646193209974,170.42290481,104.5,104.38,14.3675]
[1646193210577,185.79190481,104.5,104.38,14.3675]
[1646193210777,97.88824962,104.48,104.34,4.5]
[1646193210974,1.57227926,104.43,104.34,4.5]
[1646193211184,43.85534196,104.43,104.34,4.5]
[1646193211374,43.85534196,104.43,104.29,0.4792195]
[1646193212377,45.52455718,104.43,104.29,0.4792195]
[1646193212577,57.5120643,104.41,104.28,21.52814864]
[1646193212778,57.5120643,104.41,104.25,62.6643]
[1646193212779,59.212765,104.41,104.31,4.5]
[1646193212975,131.1099643,104.41,104.29,47.9193]
[1646193213377,45.8893,104.42,104.3,0.29763105]
[1646193213574,34.3907,104.46,104.3,0.29763105]
[1646193213775,82.4398645,104.46,104.3,11.83763105]
[1646193213975,18.2048,104.45,104.33,18.8746]
[1646193214377,69.4892,104.46,104.33,18.8746]
[1646193214575,8.31364728,104.44,104.33,21.8816]
[1646193214775,8.31364728,104.44,104.33,33.4216]
[1646193214975,8.31364728,104.44,104.34,0.29763105]
[1646193215175,8.31364728,104.44,104.37,18.8669]
[1646193215378,8.31364728,104.44,104.38,0.29763105]
[1646193215577,3.831,104.52,104.39,70.0]
[1646193215777,55.43860698,104.53,104.4,0.61929478]
[1646193215977,56.83246263,104.53,104.41,11.54]
[1646193216176,53.37032228,104.51,104.4,19.777]
[1646193216377,66.1505,104.52,104.42,14.361]
[1646193216576,62.3235,104.52,104.42,14.361]
[1646193216776,47.9599,104.52,104.42,13.861]
[1646193216976,47.9599,104.52,104.43,0.61929478]
[1646193217178,47.9599,104.52,104.42,13.861]
[1646193217481,47.9599,104.52,104.37,165.81778336]
[1646193217482,3.827,104.55,104.45,14.3585]
[1646193217682,171.708,104.57,104.45,14.3585]
[1646193217683,95.1015,104.57,104.46,11.83096427]
[1646193217880,95.1015,104.57,104.46,11.54]
[1646193218479,109.4584,104.57,104.47,14.3554]
[1646193218676,95.1015,104.57,104.47,14.3554]
[1646193219479,96.35,104.55,104.45,4.5]
[1646193219679,96.35,104.53,104.32,21.8759122]
[1646193219881,70.2765,104.52,104.33,99.43198963]
[1646193220079,52.03550882,104.51,104.36,2.54904003]
[1646193220278,70.2765,104.52,104.38,4.5]
[1646193220484,70.2765,104.52,104.39,0.17119207]
[1646193220678,70.2765,104.52,104.42,14.3606]
[1646193220880,71.84857093,104.52,104.38,11.54]
[1646193221078,71.84857093,104.52,104.39,4.5]
[1646193221279,46.84397083,104.51,104.38,14.08904003]
[1646193221679,61.20867083,104.51,104.4,14.3648]
[1646193222179,65.03767083,104.51,104.4,14.3648]
[1646193222379,61.20867083,104.51,104.4,14.3648]
[1646193222879,61.20867083,104.51,104.4,18.8648]
[1646193223081,61.20867083,104.51,104.41,0.20104788]
[1646193223279,46.06872866,104.49,104.4,14.3648]
[1646193223579,74.1055,104.52,104.41,14.3632]
[1646193223980,70.2765,104.52,104.41,14.3632]
[1646193224378,96.35,104.5,104.41,18.8632]
[1646193224579,58.35384871,104.51,104.41,18.8632]
[1646193224779,70.2765,104.52,104.41,18.8632]
[1646193225180,90.35809463,104.54,104.42,0.23410751]
[1646193225181,3.829,104.54,104.42,0.23410751]
[1646193225381,96.35,104.58,104.46,14.3552]
[1646193225585,172.471,104.57,104.46,14.3552]
[1646193225781,58.61664097,104.56,104.46,14.3552]
[1646193225981,141.89820376,104.54,104.44,11.54]
[1646193226285,141.89820376,104.54,104.44,16.04]
[1646193226481,141.89820376,104.54,104.44,15.54]
[1646193226781,14.3586,104.55,104.44,11.04]
[1646193226982,14.3586,104.55,104.45,0.1322381]
[1646193227382,14.3586,104.55,104.44,15.54]
[1646193227782,0.11528818,104.54,104.44,15.54]
[1646193227983,0.11528818,104.54,104.44,29.0109]
[1646193228185,163.76536746,104.55,104.44,29.0109]
[1646193228385,53.05676746,104.55,104.44,24.5109]
[1646193228583,53.05676746,104.55,104.45,0.14489561]
[1646193228785,53.05676746,104.55,104.45,4.64489561]
[1646193228983,53.05676746,104.55,104.45,4.5]
[1646193228984,149.40676746,104.55,104.45,4.5]
[1646193229183,149.40676746,104.55,104.46,14.3561]
[1646193229383,149.40676746,104.55,104.45,4.5]
[1646193229586,163.76536746,104.55,104.45,4.5]
[1646193229891,163.76536746,104.55,104.43,59.3933]
[1646193230083,163.76536746,104.55,104.45,4.5]
[1646193230284,165.38261018,104.55,104.45,4.5]
[1646193230483,153.57305021,104.55,104.45,4.5]
[1646193230687,98.09520851,104.53,104.39,11.54]
[1646193230886,144.21487236,104.52,104.4,4.5]
[1646193231284,158.57767236,104.52,104.41,14.3628]
[1646193233088,96.35,104.52,104.41,110.7128]
[1646193233289,96.35,104.52,104.42,0.27994889]
[1646193233488,90.21204003,104.57,104.45,14.3593]
[1646193233692,72.294,104.57,104.45,25.8993]
[1646193233888,72.294,104.57,104.46,0.27994889]
[1646193234087,118.88303467,104.57,104.49,4.5]
[1646193234486,118.88303467,104.57,104.48,11.54]
[1646193234686,118.88303467,104.57,104.49,14.3514]
[1646193234887,118.88303467,104.57,104.5,0.2135957]
[1646193235087,120.52302082,104.57,104.43,6.142]
[1646193235288,58.71075669,104.55,104.48,4.5]
[1646193235488,96.35,104.54,104.48,4.5]
[1646193235690,96.35,104.52,104.48,4.5]
[1646193235901,56.11077497,104.53,104.48,4.5]
[1646193236111,56.11077497,104.53,104.42,3.827]
[1646193236288,56.11077497,104.53,104.43,4.5]
[1646193236488,96.35,104.52,104.45,14.359]
[1646193236689,96.35,104.5,104.42,51.6902]
[1646193236991,42.70978614,104.51,104.42,51.6902]
[1646193237187,42.70978614,104.51,104.42,47.8632]
[1646193237589,139.05978614,104.51,104.42,47.8632]
[1646193237987,139.05978614,104.51,104.43,14.3617]
[1646193238190,14.3622,104.53,104.43,14.3617]
[1646193238588,96.35,104.52,104.44,0.1496927]
[1646193238789,96.35,104.52,104.43,14.3617]
[1646193239189,143.83250575,104.52,104.43,14.3617]
[1646193240592,145.33707542,104.52,104.43,14.3617]
[1646193241995,143.83250575,104.52,104.43,14.3617]
[1646193242395,143.83250575,104.52,104.44,0.43173642]
[1646193243000,158.19550575,104.52,104.43,14.3617]
[1646193243199,159.88258345,104.52,104.41,18.8644]
[1646193243402,162.43162348,104.52,104.41,14.3644]
[1646193243618,173.97162348,104.52,104.38,3.829]
[1646193243815,96.35,104.48,104.36,11.54]
[1646193244015,96.35,104.46,104.37,3.83]
[1646193244216,46.82295322,104.45,104.36,11.54]
[1646193244417,46.82295322,104.45,104.36,15.371]
[1646193244614,46.82295322,104.45,104.36,11.54]
[1646193245019,143.17295322,104.45,104.37,14.3698]
[1646193245817,143.17295322,104.45,104.35,4.5]
[1646193246019,30.14378018,104.44,104.35,4.5]
[1646193246222,156.69188376,104.43,104.31,3.831]
[1646193246419,96.35,104.41,104.31,3.831]
[1646193246618,96.35,104.39,104.31,3.831]
[1646193246817,97.95045438,104.39,104.31,3.831]
[1646193247019,96.35,104.37,104.28,4.5]
[1646193247317,96.35,104.37,104.29,3.834]
[1646193247519,147.83296287,104.38,104.29,3.834]
[1646193247722,48.0683,104.4,104.29,18.2157]
[1646193247921,49.49052252,104.4,104.29,14.3817]
[1646193248124,48.0683,104.4,104.29,14.3817]
[1646193248721,52.72026938,104.38,104.29,14.3817]
[1646193248918,48.0683,104.4,104.29,14.3817]
[1646193249120,62.448,104.4,104.29,14.3817]
[1646193249519,62.448,104.4,104.29,110.7317]
[1646193249719,158.798,104.4,104.3,0.27025382]
[1646193249920,158.798,104.4,104.32,14.3777]
[1646193250120,218.43894171,104.4,104.32,14.3777]
[1646193250721,122.08894171,104.4,104.32,14.3777]
[1646193251328,107.70924171,104.4,104.32,14.3777]
[1646193251925,204.05924171,104.4,104.32,14.3777]
[1646193252126,0.31600997,104.39,104.25,11.54]
[1646193252329,0.31600997,104.39,104.3,4.5]
[1646193252525,50.97928408,104.35,104.22,5.00497137]
[1646193252727,97.42598408,104.35,104.22,11.54]
[1646193252926,97.42598408,104.35,104.23,3.835]
[1646193253325,97.42598408,104.35,104.22,3.835]
[1646193253526,111.81308408,104.35,104.24,14.3874]
[1646193254329,209.70863474,104.35,104.21,3.835]
[1646193254529,221.24863474,104.35,104.22,14.3883]
[1646193254728,55.18564992,104.32,104.22,14.3883]
[1646193255328,55.18564992,104.32,104.19,63.3367]
[1646193255528,78.81394992,104.32,104.2,14.391]
[1646193255732,178.99994992,104.32,104.2,14.391]
[1646193256133,180.49941095,104.32,104.2,14.391]
[1646193256431,208.97985098,104.32,104.18,3.836]
[1646193256631,222.44677803,104.32,104.18,3.836]
[1646193257028,126.09677803,104.32,104.18,3.836]
[1646193257229,23.6283,104.32,104.19,0.41053063]
[1646193257428,24.9578,104.33,104.21,0.50913445]
[1646193257630,24.9578,104.33,104.22,53.61314736]
[1646193257831,27.7528,104.36,104.23,0.50913445]
[1646193258032,5.0,104.36,104.25,0.50913445]
[1646193258231,24.7941,104.39,104.27,0.50913445]
[1646193258431,24.7941,104.39,104.27,35.22683445]
[1646193258432,76.06848757,104.39,104.27,35.22683445]
[1646193258832,76.06848757,104.39,104.27,34.7177]
[1646193259233,76.06848757,104.39,104.27,39.2177]
[1646193259433,3.833,104.38,104.27,39.2177]
[1646193259633,60.6238633,104.37,104.27,39.2177]
[1646193259937,3.833,104.38,104.27,23.1777]
[1646193260134,3.833,104.38,104.27,34.7177]
[1646193260333,28.6281,104.39,104.28,0.22771437]
[1646193260538,24.7941,104.39,104.31,14.3775]
[1646193262340,3.833,104.42,104.31,14.3775]
[1646193262644,3.833,104.42,104.35,110.7192]
[1646193262840,146.3593,104.46,104.36,11.94922893]
[1646193263042,146.3593,104.46,104.36,15.371]
[1646193263239,146.3593,104.46,104.36,11.54]
[1646193263641,146.3593,104.46,104.37,96.35]
[1646193263838,146.3593,104.46,104.39,14.366]
[1646193264039,68.8341,104.46,104.4,0.17060265]
[1646193264437,68.8341,104.46,104.39,96.35]
[1646193264637,76.6709,104.49,104.39,107.89]
[1646193264838,49.8731,104.51,104.39,11.54]
[1646193265037,49.8731,104.51,104.4,14.3651]
[1646193265237,49.8731,104.51,104.41,11.54]
[1646193265439,96.33190405,104.51,104.41,11.54]
[1646193265637,49.8731,104.51,104.41,11.54]
[1646193265937,9.53038895,104.5,104.41,11.54]
[1646193266544,9.53038895,104.5,104.43,14.3613]
[1646193266739,9.53038895,104.5,104.44,11.93936007]
[1646193267038,9.53038895,104.5,104.44,11.54]
[1646193267238,60.64816474,104.49,104.43,3.827]
[1646193267438,60.64816474,104.49,104.4,11.54]
[1646193267837,9.53038895,104.5,104.41,3.829]
[1646193268839,49.02464818,104.49,104.41,3.829]
[1646193269045,49.02464818,104.49,104.41,18.1925]
[1646193269440,9.53038895,104.48,104.41,18.1925]
[1646193270845,9.53038895,104.48,104.32,14.653]
[1646193270846,44.53777123,104.47,104.32,14.653]
[1646193271042,0.34879091,104.46,104.35,4.5]
[1646193271443,44.53777123,104.47,104.35,16.04]
[1646193271645,44.53777123,104.47,104.35,11.54]
[1646193272042,44.53777123,104.47,104.37,14.3693]
[1646193272342,44.53777123,104.47,104.34,11.54]
[1646193272542,48.66918737,104.45,104.32,16.04]
[1646193272742,48.66918737,104.45,104.32,11.54]
[1646193273541,52.50018737,104.45,104.32,11.54]
[1646193273743,0.25236648,104.44,104.32,11.54]
[1646193273942,52.50018737,104.45,104.32,11.54]
[1646193274145,66.87518737,104.45,104.33,14.3745]
[1646193274743,48.66918737,104.45,104.33,14.3745]
[1646193274950,155.15555228,104.43,104.33,14.3745]
[1646193275245,58.80555228,104.43,104.33,14.3745]
[1646193275845,107.42088895,104.46,104.33,14.3745]
[1646193276045,9.53038895,104.42,104.33,25.9145]
[1646193276245,9.53038895,104.42,104.34,0.2287199]
[1646193276448,9.53038895,104.42,104.36,14.3712]
[1646193277246,9.53038895,104.42,104.36,110.7212]
[1646193277446,9.53038895,104.42,104.36,25.9112]
[1646193278246,9.53038895,104.42,104.37,96.35]
[1646193278447,9.53038895,104.42,104.38,122.54177618]
[1646193278647,9.53038895,104.42,104.38,26.19177618]
[1646193278847,9.53038895,104.46,104.38,83.563]
[1646193279048,9.53038895,104.46,104.38,108.47240864]
[1646193279251,9.53038895,104.46,104.38,147.16240864]
[1646193279450,9.53038895,104.46,104.38,204.82240864]
[1646193279649,9.53038895,104.46,104.39,0.18289953]
[1646193279850,9.53038895,104.46,104.41,110.7089]
[1646193280049,9.53038895,104.46,104.42,11.54]
[1646193280950,9.53038895,104.46,104.43,14.3602]
[1646193281151,9.53038895,104.46,104.43,25.9002]
[1646193281549,9.53038895,104.46,104.44,0.63379597]
[1646193281748,22.8685,104.53,104.44,0.82401704]
[1646193281954,22.8685,104.53,104.44,12.17379597]
[1646193282352,47.64028551,104.52,104.44,12.17379597]
[1646193282951,22.8685,104.53,104.44,108.52379597]